fUST/lending_fUST_20250109
["ID","MTS","AMOUNT","RATE_DAILY","PERIOD"]
[348192899,1736377839272,-500.0,0.00019435,3]
[348192902,1736377839303,-500.0,0.00019435,3]
[348192904,1736377839312,-500.0,0.00019435,2]
[348192906,1736377839322,-984.86,0.00019435,3]
[348192908,1736377839331,-500.0,0.00019435,3]
[348192910,1736377839341,-500.0,0.00019435,3]
[348192912,1736377839350,-446.21,0.00019452,3]
[348192914,1736377839359,-500.0,0.00019452,3]
[348192916,1736377839368,-500.0,0.00019452,3]
[348192918,1736377839377,-153.15519974,0.00019452,3]
[348192920,1736377839387,-500.0,0.00019452,3]
[348192922,1736377839397,-843.10188816,0.00019501,2]
[348192924,1736377839406,-843.10188816,0.0001957,2]
[348192926,1736377839416,-555.66,0.00019669,3]
[348192928,1736377839424,-500.0,0.00019669,3]
[348192930,1736377839434,-500.0,0.00019669,3]
[348192932,1736377839443,-500.0,0.00019669,3]
[348192934,1736377839453,-500.0,0.00019669,3]
[348192936,1736377839462,-500.0,0.00019669,3]
[348192938,1736377839471,-500.0,0.00019669,3]
[348192940,1736377839480,-633.56,0.00019669,3]
[348192942,1736377839490,-500.0,0.00019669,3]
[348192944,1736377839499,-512.67,0.00019669,3]
[348192945,1736377839508,-482.15,0.00019669,3]
[348192947,1736377839518,-608.62,0.00019669,3]
[348192949,1736377839527,-460.77,0.00019669,3]
[348192951,1736377839537,-504.66,0.00019669,3]
[348192953,1736377839548,-305.84900545,0.0001967,3]
[348192955,1736377839557,-500.0,0.0001967,3]
[348192957,1736377839566,-318.0129423,0.0001967,3]
[348192959,1736377839575,-433.96611614,0.0001967,3]
[348192962,1736377839585,-248.64915932,0.0001967,3]
[348192963,1736377839594,-266.43,0.0001967,3]
[348192966,1736377839604,-500.0,0.0001967,3]
[348192967,1736377839613,-226.83,0.0001967,3]
[348192970,1736377839623,-386.43466845,0.0001967,3]
[348192971,1736377839632,-578.44,0.0001967,3]
[348192973,1736377839642,-500.0,0.0001967,3]
[348192975,1736377839651,-500.0,0.0001967,3]
[348192977,1736377839661,-500.0,0.0001967,3]
[348192980,1736377839671,-500.0,0.0001967,3]
[348192981,1736377839681,-194.26666315,0.0001967,3]
[348192984,1736377839690,-213.99,0.0001967,3]
[348192985,1736377839700,-265.73333685,0.0001967,3]
[348192987,1736377839709,-500.0,0.0001967,3]
[348192989,1736377839719,-500.0,0.0001967,3]
[348192991,1736377839728,-500.0,0.0001967,3]
[348192993,1736377839737,-500.0,0.0001967,3]
[348192996,1736377839746,-500.0,0.0001967,3]
[348192998,1736377839757,-500.0,0.0001967,3]
[348193000,1736377839767,-500.0,0.0001967,3]
[348193002,1736377839776,-500.0,0.0001967,3]
[348193004,1736377839785,-500.0,0.0001967,2]
[348193006,1736377839794,-160.71,0.0001967,3]
[348193008,1736377839803,-213.86,0.0001967,3]
[348193010,1736377839812,-500.0,0.0001967,3]
[348193012,1736377839822,-472.33,0.0001967,3]
[348193014,1736377839831,-4468.04,0.0001967,3]
[348193016,1736377839840,-500.0,0.0001967,3]
[348193018,1736377839849,-164.1,0.0001967,3]
[348193020,1736377839859,-500.0,0.0001967,3]
[348193022,1736377839868,-500.0,0.0001967,3]
[348193024,1736377839877,-500.0,0.0001967,3]
[348193026,1736377839886,-500.0,0.0001967,3]
[348193028,1736377839895,-169.15465379,0.00019672,3]
[348193030,1736377839904,-336.73,0.00019672,3]
[348193031,1736377839913,-277.95,0.00019672,3]
[348193034,1736377839923,-500.0,0.00019672,3]
[348193035,1736377839932,-623.99,0.00019672,3]
[348193046,1736377840019,-500.0,0.00019672,3]
[348193048,1736377840029,-151.0,0.00019672,2]
[348193050,1736377840039,-620.26,0.00019672,3]
[348193052,1736377840048,-250.811375,0.00019672,2]
[348193054,1736377840057,-274.0,0.00019672,3]
[348193056,1736377840067,-1161.03,0.00019709,3]
[348193058,1736377840075,-500.0,0.00019709,3]
[348193060,1736377840085,-984.86,0.00019709,3]
[348193063,1736377840094,-500.0,0.00019709,3]
[348193065,1736377840103,-500.0,0.00019726,3]
[348193067,1736377840112,-487.47,0.00019726,3]
[348193069,1736377840122,-891.71510337,0.000199,2]
[348193071,1736377840131,-555.66,0.00019943,3]
[348193073,1736377840141,-500.0,0.00019943,3]
[348193075,1736377840155,-612.58,0.00019943,3]
[348193078,1736377840165,-357.46,0.00019943,3]
[348193080,1736377840175,-633.56,0.00019943,3]
[348193082,1736377840186,-500.0,0.00019943,3]
[348193084,1736377840195,-500.0,0.00019944,3]
[348193086,1736377840204,-500.0,0.00019944,3]
[348193088,1736377840214,-500.0,0.00019944,2]
[348193090,1736377840223,-500.0,0.00019944,3]
[348193092,1736377840233,-4468.04,0.00019944,3]
[348193094,1736377840242,-340.23089559,0.00019944,3]
[348193096,1736377840252,-151.0,0.00019944,2]
[348193098,1736377840261,-500.0,0.00019945,3]
[348193100,1736377840271,-151.0,0.00019946,2]
[348193102,1736377840280,-623.99,0.00019946,3]
[348193104,1736377840289,-151.0,0.00019946,2]
[348193106,1736377840298,-151.0,0.00019946,2]
[348193108,1736377840307,-500.0,0.00019946,3]
[348193110,1736377840317,-1161.03,0.00019983,3]
[348193111,1736377840326,-500.0,0.00019983,3]
[348193112,1736377840335,-984.86,0.00019983,3]
[348193113,1736377840345,-1866.0,0.0002,2]
[348193114,1736377840354,-500.0,0.0002,3]
[348193115,1736377840363,-891.71510318,0.00020038,2]
[348193116,1736377840372,-891.71510318,0.00020176,2]
[348193117,1736377840381,-555.66,0.00020217,3]
[348193118,1736377840390,-500.0,0.00020217,3]
[348193119,1736377840399,-633.56,0.00020217,3]
[348193120,1736377840408,-609.95287116,0.00020217,3]
[348193121,1736377840417,-229.64,0.00020218,2]
[348193122,1736377840426,-500.0,0.00020218,3]
[348193123,1736377840435,-3698.65713958,0.00020218,3]
[348193124,1736377840508,-562.4362681,0.00020218,3]
[348193171,1736377840937,-500.0,0.00019178,2]
[348193173,1736377840947,-500.0,0.00019373,2]
[348193175,1736377840956,-500.0,0.00019391,2]
[348193176,1736377840966,-500.0,0.00019391,2]
[348193178,1736377840975,-500.0,0.00019391,2]
[348193180,1736377840984,-500.0,0.00019391,2]
[348193182,1736377840993,-500.0,0.00019391,2]
[348193184,1736377841002,-500.0,0.00019391,2]
[348193186,1736377841012,-500.0,0.00019391,2]
[348193188,1736377841021,-500.0,0.00019391,2]
[348193190,1736377841030,-500.0,0.00019391,2]
[348193192,1736377841040,-173.82823873,0.00019391,2]
[348193194,1736377841049,-500.0,0.00019391,2]
[348193196,1736377841058,-500.0,0.00019391,2]
[348193198,1736377841067,-500.0,0.00019391,2]
[348193200,1736377841076,-500.0,0.00019391,2]
[348193202,1736377841085,-500.0,0.00019391,2]
[348193204,1736377841094,-500.0,0.00019391,2]
[348193206,1736377841103,-500.0,0.00019391,2]
[348193208,1736377841112,-500.0,0.00019391,2]
[348193211,1736377841122,-500.0,0.00019391,2]
[348193212,1736377841131,-500.0,0.00019391,2]
[348193215,1736377841141,-500.0,0.00019391,2]
[348193217,1736377841154,-500.0,0.00019391,2]
[348193218,1736377841163,-500.0,0.00019391,2]
[348193221,1736377841172,-500.0,0.00019391,2]
[348193222,1736377841182,-500.0,0.00019391,2]
[348193225,1736377841193,-500.0,0.00019391,2]
[348193227,1736377841203,-500.0,0.00019391,2]
[348193229,1736377841213,-500.0,0.00019391,2]
[348193231,1736377841222,-500.0,0.00019391,2]
[348193232,1736377841231,-500.0,0.00019391,2]
[348193234,1736377841240,-500.0,0.00019391,2]
[348193236,1736377841250,-500.0,0.00019391,2]
[348193238,1736377841259,-500.0,0.00019391,2]
[348193240,1736377841268,-500.0,0.00019391,2]
[348193242,1736377841277,-500.0,0.00019391,2]
[348193244,1736377841286,-500.0,0.00019391,2]
[348193246,1736377841295,-10.15451202,0.00019391,2]
[348193248,1736377841307,-489.84548798,0.00019391,2]
[348193250,1736377841316,-500.0,0.00019391,2]
[348193252,1736377841326,-500.0,0.00019391,2]
[348193254,1736377841335,-500.0,0.00019391,2]
[348193256,1736377841344,-500.0,0.00019391,2]
[348193258,1736377841353,-382.49697065,0.00019391,2]
[348193260,1736377841362,-500.0,0.00019391,2]
[348193262,1736377841372,-500.0,0.00019391,2]
[348193264,1736377841381,-301.3336224,0.00019391,2]
[348193266,1736377841391,-500.0,0.00019391,2]
[348193268,1736377841399,-500.0,0.00019391,2]
[348193270,1736377841409,-500.0,0.00019391,2]
[348193272,1736377841417,-500.0,0.00019391,2]
[348193274,1736377841426,-500.0,0.00019391,2]
[348193276,1736377841436,-500.0,0.00019391,2]
[348193278,1736377841445,-500.0,0.00019391,2]
[348193280,1736377841454,-500.0,0.00019391,2]
[348193282,1736377841463,-373.99445579,0.00019391,2]
[348193284,1736377841472,-500.0,0.00019391,2]
[348193286,1736377841481,-500.0,0.00019391,2]
[348193288,1736377841490,-500.0,0.00019391,2]
[348193290,1736377841499,-500.0,0.00019391,2]
[348193292,1736377841508,-500.0,0.00019391,2]
[348193294,1736377841519,-500.0,0.00019391,2]
[348193296,1736377841528,-500.0,0.00019391,2]
[348193299,1736377841538,-500.0,0.00019398,3]
[348193300,1736377841546,-1000.0,0.00019921,2]
[348193303,1736377841555,-206.94659232,0.00020218,3]
[348193304,1736377841564,-151.0,0.0002022,2]
[348193306,1736377841574,-458.5847574,0.0002022,3]
[348193310,1736377841601,-165.4052426,0.0002022,3]
[348193312,1736377841610,-500.0,0.0002022,3]
[348193314,1736377841619,-1702.83,0.00020255,3]
[348193316,1736377841628,-1161.03,0.00020257,3]
[348193318,1736377841637,-500.0,0.00020257,3]
[348193320,1736377841646,-984.86,0.00020257,3]
[348193322,1736377841655,-500.0,0.00020273,3]
[348193324,1736377841665,-891.71510318,0.00020314,2]
[348193326,1736377841674,-151.0,0.00020314,2]
[348193328,1736377841683,-891.71510318,0.00020452,2]
[348193330,1736377841693,-555.66,0.00020491,3]
[348193332,1736377841702,-321.6,0.00020491,3]
[348193334,1736377841711,-633.56,0.00020491,3]
[348193336,1736377841720,-500.0,0.00020492,3]
[348193338,1736377841728,-4468.04,0.00020492,3]
[348193340,1736377841737,-500.0,0.00020493,3]
[348193342,1736377841746,-151.0,0.00020494,2]
[348193344,1736377841755,-623.99,0.00020494,3]
[348193346,1736377841764,-500.0,0.00020494,3]
[348193348,1736377841773,-159.253764,0.00020521,2]
[348193350,1736377841782,-1161.03,0.00020531,3]
[348193352,1736377841791,-500.0,0.00020531,3]
[348193354,1736377841799,-984.86,0.00020531,3]
[348193356,1736377841809,-500.0,0.00020547,3]
[348193358,1736377841818,-164.04496303,0.00020567,2]
[348193360,1736377841827,-891.71510318,0.0002059,2]
[348193362,1736377841836,-891.71510318,0.00020728,2]
[348193364,1736377841845,-555.66,0.00020765,3]
[348193374,1736377841930,-633.56,0.00020765,3]
[348193376,1736377841941,-500.0,0.00020766,3]
[348193378,1736377841951,-4468.04,0.00020766,3]
[348193380,1736377841960,-151.0,0.00020766,2]
[348193381,1736377841969,-151.0,0.00020768,2]
[348193383,1736377841979,-623.99,0.00020768,3]
[348193385,1736377841988,-151.0,0.00020768,2]
[348193387,1736377841997,-151.0,0.00020768,2]
[348193389,1736377842007,-500.0,0.00020768,3]
[348193390,1736377842016,-2556.91561765,0.000208,2]
[348193508,1736377843555,-234.69918005,0.00019178,2]
[348193509,1736377843565,-218.42904554,0.00019396,3]
[348193531,1736377846539,-500.0,0.00019373,2]
[348193532,1736377846549,-152.20498532,0.00019373,2]
[348193533,1736377846558,-281.57095446,0.00019396,3]
[348193534,1736377846568,-1000.0,0.00019921,2]
[348193535,1736377846578,-500.0,0.00019983,3]
[348193536,1736377846588,-3441.9497247,0.000208,2]
[348193537,1736377846600,-1229.83465765,0.000208,2]
[348193538,1736377846609,-151.0,0.00020805,2]
[348193539,1736377846618,-1161.03,0.00020805,3]
[348193540,1736377846628,-151.0,0.00020805,2]
[348193541,1736377846637,-500.0,0.00020805,3]
[348193542,1736377846646,-59.51781155,0.00020805,2]
[348193583,1736378615047,163.47899,0.00013973,2]
[348193586,1736378825135,-222.29500369,0.000189,2]
[348193587,1736378838124,-56.30454997,0.000189,2]
[348193588,1736378838145,-150.0,0.000189,2]
[348193589,1736378838169,-220.22517318,0.00019077,2]
[348193590,1736378838190,-551.9765032,0.00019173,2]
[348193591,1736378838212,-500.0,0.00019173,2]
[348193592,1736378838234,-500.0,0.00019173,2]
[348193593,1736378838256,-300.0,0.00019176,2]
[348193594,1736378838281,-500.0,0.00019177,2]
[348193595,1736378838306,-500.0,0.00019177,2]
[348193596,1736378838329,-500.0,0.00019177,2]
[348193597,1736378838353,-500.0,0.00019177,2]
[348193598,1736378838376,-500.0,0.00019177,2]
[348193599,1736378838400,-416.60955447,0.00019177,2]
[348193600,1736378838424,-500.0,0.00019177,2]
[348193601,1736378838454,-500.0,0.00019177,2]
[348193602,1736378838476,-484.06512471,0.00019177,2]
[348193603,1736378838500,-500.0,0.00019177,2]
[348193604,1736378838526,-500.0,0.00019177,2]
[348193605,1736378838550,-500.0,0.00019177,2]
[348193606,1736378838574,-500.0,0.00019177,2]
[348193607,1736378838599,-500.0,0.00019177,2]
[348193608,1736378838622,-500.0,0.00019177,2]
[348193609,1736378838646,-500.0,0.00019177,2]
[348193610,1736378838670,-500.0,0.00019177,2]
[348193611,1736378838694,-500.0,0.00019177,2]
[348193612,1736378838718,-431.50008589,0.00019177,2]
[348193618,1736378945116,-5517.07896922,0.00018,7]
[348193619,1736378954127,-165.914,0.00018,7]
[348193662,1736379032839,-19.71468544,0.00018,7]
[348193665,1736379032850,-10134.44182429,0.00018108,2]
[348193667,1736379032863,-7801.91173931,0.00018108,2]
[348193669,1736379032875,-291.49100566,0.000189,2]
[348193671,1736379032885,-4906.58974517,0.00019,2]
[348193674,1736379032896,-68.49991411,0.00019177,2]
[348193676,1736379032907,-500.0,0.00019177,2]
[348193678,1736379032918,-500.0,0.00019177,2]
[348193680,1736379032929,-500.0,0.00019177,2]
[348193682,1736379032942,-500.0,0.00019177,2]
[348193685,1736379032953,-500.0,0.00019177,2]
[348193687,1736379032964,-500.0,0.00019177,2]
[348193689,1736379032976,-500.0,0.00019177,2]
[348193691,1736379032988,-500.0,0.00019177,2]
[348193694,1736379033000,-500.0,0.00019177,2]
[348193696,1736379033011,-500.0,0.00019177,2]
[348193698,1736379033024,-500.0,0.00019177,2]
[348193701,1736379033037,-500.0,0.00019177,2]
[348193703,1736379033048,-500.0,0.00019177,2]
[348193705,1736379033059,-500.0,0.00019177,2]
[348193707,1736379033069,-500.0,0.00019177,2]
[348193710,1736379033080,-500.0,0.00019177,2]
[348193713,1736379033091,-500.0,0.00019177,2]
[348193716,1736379033101,-500.0,0.00019177,2]
[348193719,1736379033113,-500.0,0.00019177,2]
[348193723,1736379033125,-500.0,0.00019177,2]
[348193727,1736379033137,-500.0,0.00019177,2]
[348193730,1736379033150,-602.04579443,0.00019177,2]
[348193733,1736379033163,-500.0,0.00019177,2]
[348193738,1736379033175,-232.3524313,0.00019177,2]
[348193741,1736379033190,-267.6475687,0.00019177,2]
[348193744,1736379033200,-227.5574313,0.00019177,2]
[348193748,1736379033214,-272.4425687,0.00019177,2]
[348193750,1736379033229,-500.0,0.00019177,2]
[348193753,1736379033242,-368.5574393,0.00019177,2]
[348193757,1736379033256,-131.4425607,0.00019177,2]
[348193760,1736379033270,-500.0,0.00019177,2]
[348193762,1736379033282,-500.0,0.00019177,2]
[348193765,1736379033293,-500.0,0.00019177,2]
[348193767,1736379033305,-500.0,0.00019177,2]
[348193769,1736379033316,-500.0,0.00019177,2]
[348193771,1736379033328,-187.0243893,0.00019177,2]
[348193774,1736379033341,-312.9756107,0.00019177,2]
[348193776,1736379033353,-500.0,0.00019177,2]
[348193778,1736379033365,-500.0,0.00019177,2]
[348193780,1736379033376,-254.813,0.00019177,2]
[348193783,1736379033387,-500.0,0.00019177,2]
[348193785,1736379033398,-500.0,0.00019177,2]
[348193787,1736379033409,-500.0,0.00019177,2]
[348193789,1736379033419,-500.0,0.00019177,2]
[348193791,1736379033431,-500.0,0.00019177,2]
[348193793,1736379033442,-500.0,0.00019177,2]
[348193796,1736379033452,-500.0,0.00019177,2]
[348193798,1736379033462,-350.0,0.00019177,2]
[348193800,1736379033473,-500.0,0.00019177,2]
[348193802,1736379033484,-500.0,0.00019177,2]
[348193804,1736379033495,-397.33880372,0.00019177,2]
[348193810,1736379033545,-102.66119628,0.00019177,2]
[348193812,1736379033556,-500.0,0.00019177,2]
[348193814,1736379033567,-280.45254235,0.00019177,2]
[348193816,1736379033578,-500.0,0.00019177,2]
[348193819,1736379033590,-500.0,0.00019177,2]
[348193821,1736379033601,-500.0,0.00019177,2]
[348193823,1736379033611,-500.0,0.00019177,2]
[348193825,1736379033622,-500.0,0.00019177,2]
[348193827,1736379033633,-500.0,0.00019177,2]
[348193829,1736379033645,-500.0,0.00019177,2]
[348193832,1736379033656,-500.0,0.00019177,2]
[348193834,1736379033667,-251.36841805,0.00019177,2]
[348193836,1736379033678,-306.23004668,0.00019177,2]
[348193838,1736379033689,-500.0,0.00019177,2]
[348193840,1736379033700,-500.0,0.00019178,2]
[348193856,1736379033833,-500.0,0.00019178,2]
[348193858,1736379033846,-500.0,0.00019178,2]
[348193860,1736379033856,-500.0,0.00019178,2]
[348193862,1736379033866,-500.0,0.00019178,2]
[348193864,1736379033875,-504.24253105,0.00019178,2]
[348193866,1736379033885,-500.0,0.00019178,2]
[348193868,1736379033894,-500.0,0.00019178,2]
[348193870,1736379033904,-500.0,0.00019178,2]
[348193872,1736379033913,-567.84928275,0.00019178,2]
[348193875,1736379033923,-500.0,0.00019178,2]
[348193876,1736379033932,-500.0,0.00019178,2]
[348193879,1736379033941,-500.0,0.00019178,2]
[348193881,1736379033951,-393.2309031,0.00019178,2]
[348193883,1736379033961,-500.1828881,0.00019178,2]
[348193885,1736379033971,-500.0,0.00019178,2]
[348193887,1736379033981,-286.21499303,0.00019178,2]
[348193889,1736379033993,-213.78500697,0.00019178,2]
[348193891,1736379034002,-500.0,0.00019178,2]
[348193893,1736379034012,-500.0,0.00019178,2]
[348193895,1736379034023,-500.0,0.00019178,2]
[348193897,1736379034032,-537.1010704,0.00019178,2]
[348193899,1736379034042,-500.0,0.00019178,2]
[348193901,1736379034051,-500.0,0.00019178,2]
[348193903,1736379034060,-500.0,0.00019178,2]
[348193905,1736379034070,-500.0,0.00019178,2]
[348193907,1736379034080,-500.0,0.00019178,2]
[348193909,1736379034090,-603.89053517,0.00019178,2]
[348193911,1736379034099,-500.94075034,0.00019178,2]
[348193913,1736379034108,-500.0,0.00019178,2]
[348193915,1736379034118,-500.0,0.00019178,2]
[348193917,1736379034127,-500.0,0.00019178,2]
[348193919,1736379034137,-500.0,0.00019178,2]
[348193921,1736379034147,-500.0,0.00019178,2]
[348193923,1736379034157,-500.0,0.00019178,2]
[348193926,1736379034167,-500.0,0.00019178,2]
[348193927,1736379034177,-500.0,0.00019178,2]
[348193930,1736379034187,-286.83811892,0.00019178,2]
[348193932,1736379034197,-500.0,0.00019178,2]
[348193934,1736379034206,-500.0,0.00019178,2]
[348193936,1736379034215,-500.0,0.00019178,2]
[348193938,1736379034224,-500.0,0.00019178,2]
[348193940,1736379034234,-500.0,0.00019178,2]
[348193942,1736379034244,-500.0,0.00019178,2]
[348193944,1736379034254,-500.0,0.00019178,2]
[348193946,1736379034264,-500.0,0.00019178,2]
[348193948,1736379034273,-500.0,0.00019178,2]
[348193950,1736379034283,-500.0,0.00019178,2]
[348193952,1736379034291,-500.0,0.00019178,2]
[348193954,1736379034300,-500.0,0.00019178,2]
[348193956,1736379034308,-500.0,0.00019178,2]
[348193958,1736379034317,-507.40298177,0.00019178,2]
[348193960,1736379034326,-500.0,0.00019178,2]
[348193962,1736379034335,-500.0,0.00019178,2]
[348193964,1736379034344,-500.0,0.00019178,2]
[348193966,1736379034353,-500.0,0.00019178,2]
[348193968,1736379034363,-500.0,0.00019178,2]
[348193970,1736379034372,-500.0,0.00019178,2]
[348193972,1736379034381,-500.0,0.00019178,2]
[348193974,1736379034390,-500.0,0.00019178,2]
[348193976,1736379034399,-463.94665542,0.00019178,2]
[348193978,1736379034408,-500.0,0.00019178,2]
[348193980,1736379034417,-500.0,0.00019178,2]
[348193982,1736379034426,-500.0,0.00019178,2]
[348193984,1736379034436,-500.0,0.00019178,2]
[348193987,1736379034445,-500.0,0.00019178,2]
[348193989,1736379034453,-500.0,0.00019178,2]
[348193991,1736379034463,-500.0,0.00019178,2]
[348193993,1736379034471,-614.3814154,0.00019178,2]
[348193995,1736379034480,-500.0,0.00019178,2]
[348193997,1736379034489,-500.0,0.00019178,2]
[348193999,1736379034502,-500.0,0.00019178,2]
[348194001,1736379034510,-500.0,0.00019178,2]
[348194004,1736379034525,-500.0,0.00019178,2]
[348194006,1736379034539,-500.0,0.00019178,2]
[348194009,1736379034548,-500.0,0.00019178,2]
[348194011,1736379034556,-500.0,0.00019178,2]
[348194013,1736379034564,-500.0,0.00019178,2]
[348194015,1736379034572,-500.0,0.00019178,2]
[348194017,1736379034582,-500.0,0.00019178,2]
[348194019,1736379034591,-500.0,0.00019178,2]
[348194021,1736379034601,-500.0,0.00019178,2]
[348194023,1736379034611,-532.50728286,0.00019178,2]
[348194026,1736379034620,-500.0,0.00019178,2]
[348194028,1736379034629,-500.96220777,0.00019178,2]
[348194030,1736379034636,-500.0,0.00019178,2]
[348194032,1736379034645,-500.0,0.00019178,2]
[348194034,1736379034654,-500.0,0.00019178,2]
[348194036,1736379034663,-500.0,0.00019178,2]
[348194038,1736379034672,-500.0,0.00019178,2]
[348194041,1736379034682,-500.0,0.00019178,2]
[348194043,1736379034692,-500.0,0.00019178,2]
[348194045,1736379034701,-500.0,0.00019178,2]
[348194047,1736379034710,-517.27391455,0.00019178,2]
[348194049,1736379034720,-500.0,0.00019178,2]
[348194051,1736379034730,-500.0,0.00019178,2]
[348194053,1736379034739,-500.0,0.00019178,2]
[348194055,1736379034749,-500.0,0.00019178,2]
[348194057,1736379034758,-500.0,0.00019178,2]
[348194059,1736379034770,-500.0,0.00019178,2]
[348194061,1736379034779,-500.0,0.00019178,2]
[348194063,1736379034788,-221.05989143,0.00019178,2]
[348194322,1736379038712,-202.15179312,0.00019177,2]
[348194324,1736379038721,-229.51152039,0.00019177,2]
[348194326,1736379038730,-278.94010857,0.00019178,2]
[348194328,1736379038740,-268.59299095,0.00019178,2]
[348194330,1736379038750,-500.0,0.00019178,2]
[348194332,1736379038759,-500.0,0.00019178,2]
[348194334,1736379038767,-500.0,0.00019178,2]
[348194336,1736379038777,-500.0,0.00019178,2]
[348194338,1736379038786,-500.0,0.00019178,2]
[348194340,1736379038796,-500.0,0.00019178,2]
[348194342,1736379038805,-500.0,0.00019178,2]
[348194343,1736379038815,-321.6618268,0.00019178,2]
[348194344,1736379038824,-199.14176017,0.00019178,2]
[348194345,1736379039181,-300.85823983,0.00019178,2]
[348194346,1736379039190,-500.0,0.00019178,2]
[348194347,1736379039200,-500.0,0.00019178,2]
[348194348,1736379039210,-500.0,0.00019178,2]
[348194349,1736379039219,-500.0,0.00019178,2]
[348194350,1736379039229,-500.0,0.00019178,2]
[348194351,1736379039238,-500.0,0.00019178,2]
[348194352,1736379039247,-500.0,0.00019178,2]
[348194353,1736379039257,-500.0,0.00019178,2]
[348194354,1736379039267,-500.0,0.00019178,2]
[348194355,1736379039278,-500.0,0.00019178,2]
[348194356,1736379039288,-500.0,0.00019178,2]
[348194357,1736379039298,-500.0,0.00019178,2]
[348194358,1736379039307,-500.0,0.00019178,2]
[348194359,1736379039317,-260.90846449,0.00019178,5]
[348194360,1736379039329,-239.09153551,0.00019178,5]
[348194361,1736379039338,-500.0,0.00019178,2]
[348194362,1736379039347,-500.0,0.00019178,2]
[348194363,1736379039356,-500.0,0.00019178,2]
[348194364,1736379039366,-500.0,0.00019178,2]
[348194365,1736379039375,-500.0,0.00019178,2]
[348194366,1736379039384,-505.20690931,0.00019178,2]
[348194367,1736379039393,-500.0,0.00019178,2]
[348194368,1736379039403,-500.0,0.00019178,2]
[348194369,1736379039411,-500.0,0.00019178,2]
[348194370,1736379039421,-500.0,0.00019178,2]
[348194371,1736379039430,-500.0,0.00019178,2]
[348194372,1736379039439,-500.0,0.00019178,2]
[348194373,1736379039449,-500.0,0.00019178,2]
[348194374,1736379039458,-500.0,0.00019178,2]
[348194375,1736379039467,-500.0,0.00019178,2]
[348194376,1736379039477,-500.0,0.00019178,2]
[348194377,1736379039487,-500.0,0.00019178,2]
[348194378,1736379039497,-500.0,0.00019178,2]
[348194379,1736379039509,-500.0,0.00019178,2]
[348194380,1736379039519,-500.0,0.00019178,2]
[348194381,1736379039528,-500.0,0.00019178,2]
[348194382,1736379039537,-500.0,0.00019178,2]
[348194383,1736379039549,-500.0,0.00019178,2]
[348194384,1736379039558,-655.49,0.00019178,2]
[348194385,1736379039567,-500.0,0.00019178,2]
[348194386,1736379039577,-500.0,0.00019178,2]
[348194387,1736379039588,-500.0,0.00019178,2]
[348194388,1736379039597,-204.94490441,0.00019178,2]
[348194389,1736379039609,-295.05509559,0.00019178,2]
[348194390,1736379039618,-500.0,0.00019178,2]
[348194391,1736379039627,-500.0,0.00019178,2]
[348194392,1736379039636,-500.0,0.00019178,2]